[Event "FIDE World Rapid-ch Open 2018"]
[White "Frolyanov, Dmitry"]
[Black "Akopian, Vladimir"]
[Site "St. Petersburg"]
[Round "6.20"]
[Annotator "ChessBase"]
[Result "1/2-1/2"]
[Date "2018.12.27"]
[WhiteElo "2517"]
[BlackElo "2650"]
[PlyCount "65"]
[TimeControl "900+10"]

1. e4 {[%emt 0:0:0]} c5 {[%emt 0:0:0]} 2. Nf3 {[%emt 0:0:5]} e6 {[%emt 0:0:0]} 3. d4 {[%emt 0:0:3]} cxd4 {[%emt 0:0:2]} 4. Nxd4 {[%emt 0:0:1]} a6 {[%emt 0:0:4]} 5. Bd3 {[%emt 0:0:3]} Nf6 {[%emt 0:0:2]} 6. 0-0 {[%emt 0:0:11]
} Qc7 {[%emt 0:0:7]} 7. Qe2 {[%emt 0:0:5]} d6 {[%emt 0:1:6]
} 8. f4 {[%emt 0:0:9]} g6 {[%emt 0:0:13]} 9. f5 {[%emt 0:0:44]} Bg7 {[%emt 0:0:4]
} 10. fxe6 {[%emt 0:0:49]} fxe6 {[%emt 0:0:3]} 11. Be3 {[%emt 0:0:40]
} 0-0 {[%emt 0:0:55]} 12. Nd2 {[%emt 0:0:25]} Nc6 {[%emt 0:0:0]} 13. Nxc6 {[%emt 0:1:12]} Qxc6 {[%emt 0:0:45]} 14. Rf2 {[%emt 0:0:58]} Bd7 {[%emt 0:0:28]} 15. Raf1 {[%emt 0:0:14]} Nh5 {[%emt 0:1:4]} 16. Nc4 {[%emt 0:2:31]
} Rxf2 {[%emt 0:0:27]} 17. Rxf2 {[%emt 0:0:3]} Rf8 {[%emt 0:0:0]} 18. Rxf8+ {[%emt 0:0:19]} Bxf8 {[%emt 0:0:3]} 19. Qf2 {[%emt 0:0:0]} b5 {[%emt 0:1:33]} 20. Nd2 {[%emt 0:0:16]} Bg7 {[%emt 0:0:40]} 21. Bd4 {[%emt 0:0:59]} Bxd4 {[%emt 0:0:42]} 22. Qxd4 {[%emt 0:0:3]} Nf4 {[%emt 0:0:0]} 23. Nf3 {[%emt 0:1:32]} Nxd3 {[%emt 0:1:48]} 24. Qxd3 {[%emt 0:0:21]
} Qc5+ {[%emt 0:0:17]} 25. Kh1 {[%emt 0:0:22]} Bc6 {[%emt 0:2:58]} 26. h3 {[%emt 0:0:11]
} Qb4 {[%emt 0:0:36]} 27. a3 {[%emt 0:1:42]} Qxe4 {[%emt 0:0:0]} 28. Qxd6 {[%emt 0:0:1]} Qxc2 {[%emt 0:0:37]} 29. Qxe6+ {[%emt 0:0:8]} Kg7 {[%emt 0:0:3]} 30. Qe7+ {[%emt 0:0:31]} Kg8 {[%emt 0:0:1]} 31. Qe6+ {[%emt 0:0:22]
} Kg7 {[%emt 0:0:2]} 32. Qe7+ {[%emt 0:0:2]} Kg8 {[%emt 0:0:0]} 33. Qe6+ 1/2-1/2

[Event "FIDE World Rapid-ch Open 2018"]
[White "Motylev, Alexander"]
[Black "Khismatullin, Denis"]
[Site "St. Petersburg"]
[Round "6.21"]
[Annotator "ChessBase"]
[Result "1/2-1/2"]
[Date "2018.12.27"]
[WhiteElo "2644"]
[BlackElo "2621"]
[PlyCount "21"]
[TimeControl "900+10"]

1. e4 {[%emt 0:0:0]} e5 {[%emt 0:0:0]} 2. Nf3 {[%emt 0:0:0]} Nc6 {[%emt 0:0:0]
} 3. Nc3 {[%emt 0:0:0]} Nf6 {[%emt 0:0:0]} 4. d4 {[%emt 0:0:0]} exd4 {[%emt 0:0:0]} 5. Nxd4 {[%emt 0:0:2]} Bb4 {[%emt 0:0:3]} 6. Nxc6 {[%emt 0:0:3]} bxc6 {[%emt 0:0:2]} 7. Bd3 {[%emt 0:0:3]} d5 {[%emt 0:0:5]
} 8. exd5 {[%emt 0:0:4]} cxd5 {[%emt 0:0:14]} 9. 0-0 {[%emt 0:0:0]} 0-0 {[%emt 0:0:3]} 10. Bg5 {[%emt 0:0:12]} c6 {[%emt 0:0:7]} 11. Qf3 {[%emt 0:0:3]} 1/2-1/2

[Event "FIDE World Rapid-ch Open 2018"]
[White "Salem, A.R. Saleh"]
[Black "Roiz, Michael"]
[Site "St. Petersburg"]
[Round "6.22"]
[Annotator "ChessBase"]
[Result "1/2-1/2"]
[Date "2018.12.27"]
[WhiteElo "2660"]
[BlackElo "2605"]
[PlyCount "41"]
[TimeControl "900+10"]

1. e4 {[%emt 0:0:0]} e5 {[%emt 0:0:0]} 2. Nf3 {[%emt 0:0:0]} Nc6 {[%emt 0:0:0]
} 3. Bb5 {[%emt 0:0:1]} Nf6 {[%emt 0:0:4]} 4. d3 {[%emt 0:0:0]} d6 {[%emt 0:0:56]} 5. c3 {[%emt 0:0:3]} g6 {[%emt 0:0:16]} 6. 0-0 {[%emt 0:0:3]
} Bg7 {[%emt 0:0:2]} 7. h3 {[%emt 0:1:43]} 0-0 {[%emt 0:0:4]
} 8. Be3 {[%emt 0:0:3]} a6 {[%emt 0:2:30]} 9. Ba4 {[%emt 0:0:5]} Re8 {[%emt 0:1:29]
} 10. Nbd2 {[%emt 0:0:3]} h6 {[%emt 0:0:6]} 11. Re1 {[%emt 0:0:0]} Bd7 {[%emt 0:0:26]} 12. a3 {[%emt 0:2:10]} d5 {[%emt 0:1:10]} 13. Qc2 {[%emt 0:1:40]} Na5 {[%emt 0:2:3]} 14. Bxd7 {[%emt 0:3:19]} Qxd7 {[%emt 0:0:2]
} 15. b4 {[%emt 0:0:6]} Nc6 {[%emt 0:0:4]} 16. Nb3 {[%emt 0:0:0]} Rad8 {[%emt 0:0:42]} 17. Rad1 {[%emt 0:0:12]} Qc8 {[%emt 0:0:30]} 18. a4 {[%emt 0:1:24]} b6 {[%emt 0:1:58]} 19. Ra1 {[%emt 0:2:8]} Qb7 {[%emt 0:1:14]
} 20. Bd2 {[%emt 0:0:16]} Na7 {[%emt 0:1:40]} 21. c4 {[%emt 0:0:0]} 1/2-1/2

[Event "FIDE World Rapid-ch Open 2018"]
[White "Fridman, Daniel"]
[Black "Jumabayev, Rinat"]
[Site "St. Petersburg"]
[Round "6.23"]
[Annotator "ChessBase"]
[Result "1/2-1/2"]
[Date "2018.12.27"]
[WhiteElo "2633"]
[BlackElo "2602"]
[PlyCount "124"]
[TimeControl "900+10"]

1. Nf3 {[%emt 0:0:0]} d5 {[%emt 0:0:0]} 2. d4 {[%emt 0:0:0]} Nf6 {[%emt 0:0:0]
} 3. c4 {[%emt 0:0:0]} dxc4 {[%emt 0:0:0]} 4. e3 {[%emt 0:0:0]} e6 {[%emt 0:0:0]} 5. Bxc4 {[%emt 0:0:2]} c5 {[%emt 0:0:1]} 6. 0-0 {[%emt 0:0:2]
} Nc6 {[%emt 0:0:2]} 7. dxc5 {[%emt 0:0:35]} Qxd1 {[%emt 0:0:0]} 8. Rxd1 {[%emt 0:0:2]} Bxc5 {[%emt 0:0:8]} 9. a3 {[%emt 0:0:15]} Be7 {[%emt 0:4:31]} 10. b4 {[%emt 0:0:10]} 0-0 {[%emt 0:1:36]} 11. Bb2 {[%emt 0:0:0]} Bd7 {[%emt 0:0:42]} 12. Nbd2 {[%emt 0:0:21]} Rfc8 {[%emt 0:0:56]} 13. Be2 {[%emt 0:0:10]} Be8 {[%emt 0:0:9]} 14. Nc4 {[%emt 0:0:4]} Nd5 {[%emt 0:0:47]
} 15. e4 {[%emt 0:1:23]} Nf4 {[%emt 0:2:51]} 16. Bf1 {[%emt 0:0:0]} b5 {[%emt 0:0:3]} 17. Nd6 {[%emt 0:1:36]} Bxd6 {[%emt 0:0:1]} 18. Rxd6 {[%emt 0:0:3]} a5 {[%emt 0:0:2]} 19. Rb1 {[%emt 0:2:6]} axb4 {[%emt 0:0:37]
} 20. axb4 {[%emt 0:0:2]} Ng6 {[%emt 0:2:20]} 21. Bxb5 {[%emt 0:6:15]
} Nxb4 {[%emt 0:0:41]} 22. Bxe8 {[%emt 0:0:3]} Rxe8 {[%emt 0:0:0]} 23. Bc3 {[%emt 0:0:8]} Nc2 {[%emt 0:0:19]} 24. h4 {[%emt 0:0:22]} Rec8 {[%emt 0:0:14]} 25. Bd2 {[%emt 0:0:3]} Na3 {[%emt 0:0:29]} 26. Rb7 {[%emt 0:0:3]
} Nc4 {[%emt 0:0:2]} 27. Rd4 {[%emt 0:0:41]} Nxd2 {[%emt 0:0:0]} 28. Rxd2 {[%emt 0:0:2]} Rd8 {[%emt 0:0:56]} 29. Rxd8+ {[%emt 0:0:34]} Rxd8 {[%emt 0:0:1]} 30. g3 {[%emt 0:0:8]} h6 {[%emt 0:0:38]} 31. h5 {[%emt 0:1:11]
} Nf8 {[%emt 0:0:9]} 32. Ne5 {[%emt 0:0:27]} f6 {[%emt 0:0:0]} 33. Nc6 {[%emt 0:1:29]} Rd7 {[%emt 0:0:18]} 34. Rb8 {[%emt 0:0:2]} Kf7 {[%emt 0:0:4]} 35. f4 {[%emt 0:1:6]} Rc7 {[%emt 0:0:9]} 36. Nd4 {[%emt 0:0:0]} Nd7 {[%emt 0:0:20]} 37. Rd8 {[%emt 0:0:37]} Nc5 {[%emt 0:0:30]} 38. Nb5 {[%emt 0:0:14]} Rd7 {[%emt 0:0:1]} 39. Rxd7+ {[%emt 0:0:2]} Nxd7 {[%emt 0:0:1]
} 40. Kf2 {[%emt 0:0:2]} Ke7 {[%emt 0:0:31]} 41. Ke3 {[%emt 0:0:0]} f5 {[%emt 0:0:3]} 42. e5 {[%emt 0:0:43]} Nb6 {[%emt 0:0:6]} 43. Nc3 {[%emt 0:0:5]} Nd7 {[%emt 0:0:9]} 44. Kd4 {[%emt 0:0:3]} Nf8 {[%emt 0:0:15]
} 45. Nb1 {[%emt 0:0:32]} g6 {[%emt 0:0:11]} 46. hxg6 {[%emt 0:0:0]} Nxg6 {[%emt 0:0:2]} 47. Nd2 {[%emt 0:0:1]} Kd7 {[%emt 0:0:1]} 48. Kc5 {[%emt 0:0:2]} Ne7 {[%emt 0:0:2]} 49. Nc4 {[%emt 0:0:11]} Ng6 {[%emt 0:0:1]
} 50. Ne3 {[%emt 0:0:8]} Ne7 {[%emt 0:0:4]} 51. Kb6 {[%emt 0:0:0]} Nc6 {[%emt 0:0:5]} 52. g4 {[%emt 0:0:9]} Ne7 {[%emt 0:0:14]} 53. Kc5 {[%emt 0:0:32]} fxg4 {[%emt 0:0:18]} 54. Nxg4 {[%emt 0:0:2]} Nf5 {[%emt 0:0:2]
} 55. Kc4 {[%emt 0:0:4]} Ke7 {[%emt 0:0:5]} 56. Kd3 {[%emt 0:0:0]} h5 {[%emt 0:0:26]} 57. Nf6 {[%emt 0:0:11]} h4 {[%emt 0:0:1]} 58. Ke2 {[%emt 0:0:2]} Kf7 {[%emt 0:0:31]} 59. Kf3 {[%emt 0:0:3]} h3 {[%emt 0:0:0]} 60. Ne4 {[%emt 0:0:14]} Nd4+ {[%emt 0:0:12]} 61. Kg3 {[%emt 0:0:6]} Ne2+ {[%emt 0:0:3]} 62. Kxh3 {[%emt 0:0:2]} Nxf4+ {[%emt 0:0:1]} 1/2-1/2

[Event "FIDE World Rapid-ch Open 2018"]
[White "Le, Quang Liem"]
[Black "Hovhannisyan, Robert"]
[Site "St. Petersburg"]
[Round "6.24"]
[Annotator "ChessBase"]
[Result "1/2-1/2"]
[Date "2018.12.27"]
[WhiteElo "2714"]
[BlackElo "2637"]
[PlyCount "94"]
[TimeControl "900+10"]

1. d4 {[%emt 0:0:0]} d5 {[%emt 0:0:0]} 2. c4 {[%emt 0:0:0]} c6 {[%emt 0:0:0]} 3. Nf3 {[%emt 0:0:0]} Nf6 {[%emt 0:0:0]} 4. g3 {[%emt 0:0:2]} Bg4 {[%emt 0:0:16]} 5. Ne5 {[%emt 0:0:2]} Bf5 {[%emt 0:0:6]} 6. cxd5 {[%emt 0:0:0]} cxd5 {[%emt 0:0:16]} 7. Nc3 {[%emt 0:0:4]} Nc6 {[%emt 0:0:12]} 8. f3 {[%emt 0:0:2]} Bd7 {[%emt 0:0:14]} 9. e4 {[%emt 0:0:14]} e6 {[%emt 0:0:0]} 10. Nxc6 {[%emt 0:0:10]} Bxc6 {[%emt 0:0:14]} 11. e5 {[%emt 0:0:2]} Ng8 {[%emt 0:0:31]} 12. Be3 {[%emt 0:0:28]} Bb4 {[%emt 0:0:41]} 13. Rc1 {[%emt 0:0:7]
} Ne7 {[%emt 0:0:51]} 14. Bd3 {[%emt 0:0:5]} a6 {[%emt 0:0:0]} 15. Bb1 {[%emt 0:1:7]} Nf5 {[%emt 0:1:25]} 16. Bf2 {[%emt 0:0:31]} Rc8 {[%emt 0:1:3]} 17. 0-0 {[%emt 0:0:8]} 0-0 {[%emt 0:0:33]} 18. f4 {[%emt 0:0:0]} f6 {[%emt 0:0:37]} 19. g4 {[%emt 0:0:14]} Ne7 {[%emt 0:0:25]} 20. exf6 {[%emt 0:0:41]} Rxf6 {[%emt 0:0:15]} 21. Bh4 {[%emt 0:0:11]} Rf7 {[%emt 0:1:1]
} 22. Qd3 {[%emt 0:2:38]} g6 {[%emt 0:0:2]} 23. Qe3 {[%emt 0:0:0]} Qd7 {[%emt 0:0:15]} 24. Rce1 {[%emt 0:0:42]} e5 {[%emt 0:1:2]} 25. f5 {[%emt 0:1:15]} gxf5 {[%emt 0:1:54]} 26. Bxe7 {[%emt 0:2:22]} Qxe7 {[%emt 0:0:35]
} 27. Bxf5 {[%emt 0:0:5]} Re8 {[%emt 0:0:49]} 28. Qxe5 {[%emt 0:1:29]
} Qxe5 {[%emt 0:0:57]} 29. Rxe5 {[%emt 0:0:1]} Rxe5 {[%emt 0:0:0]} 30. dxe5 {[%emt 0:0:2]} Bc5+ {[%emt 0:0:49]} 31. Kg2 {[%emt 0:0:3]
} d4+ {[%emt 0:0:3]} 32. Kg3 {[%emt 0:0:4]} dxc3 {[%emt 0:1:15]} 33. Be6 {[%emt 0:0:2]
} Be8 {[%emt 0:0:2]} 34. bxc3 {[%emt 0:0:6]} Kg7 {[%emt 0:0:0]} 35. Bxf7 {[%emt 0:0:6]} Bxf7 {[%emt 0:0:2]} 36. Rd1 {[%emt 0:0:21]} Be6 {[%emt 0:0:39]} 37. Kf4 {[%emt 0:0:27]} Be7 {[%emt 0:0:9]} 38. a4 {[%emt 0:0:56]
} Kg6 {[%emt 0:0:15]} 39. h3 {[%emt 0:0:13]} a5 {[%emt 0:0:48]
} 40. Rb1 {[%emt 0:0:16]} Bd5 {[%emt 0:0:49]} 41. Rb5 {[%emt 0:0:2]} Bc6 {[%emt 0:0:6]
} 42. Rxa5 {[%emt 0:0:13]} Bg5+ {[%emt 0:0:6]} 43. Kg3 {[%emt 0:0:2]
} Bd2 {[%emt 0:0:5]} 44. Ra8 {[%emt 0:0:58]} Be1+ {[%emt 0:0:0]} 45. Kf4 {[%emt 0:0:5]} Bd2+ {[%emt 0:0:2]} 46. Kg3 {[%emt 0:0:1]} Be1+ {[%emt 0:0:40]} 47. Kf4 {[%emt 0:0:1]} Bd2+ {[%emt 0:0:2] Ke4} 1/2-1/2

[Event "FIDE World Rapid-ch Open 2018"]
[White "Ragger, Markus"]
[Black "Artemiev, Vladislav"]
[Site "St. Petersburg"]
[Round "6.25"]
[Annotator "ChessBase"]
[Result "0-1"]
[Date "2018.12.27"]
[WhiteElo "2687"]
[BlackElo "2709"]
[PlyCount "80"]
[TimeControl "900+10"]

1. e4 {[%emt 0:0:0]} c5 {[%emt 0:0:0]} 2. Nf3 {[%emt 0:0:0]} d6 {[%emt 0:0:0]} 3. d4 {[%emt 0:0:0]} cxd4 {[%emt 0:0:0]} 4. Nxd4 {[%emt 0:0:0]} Nf6 {[%emt 0:0:0]} 5. Nc3 {[%emt 0:0:0]} a6 {[%emt 0:0:2]} 6. g3 {[%emt 0:0:0]
} e6 {[%emt 0:0:1]} 7. Bg2 {[%emt 0:0:2]} Qc7 {[%emt 0:0:5]
} 8. 0-0 {[%emt 0:0:24]} Be7 {[%emt 0:0:2]} 9. Be3 {[%emt 0:0:8]} Nc6 {[%emt 0:0:4]
} 10. Nxc6 {[%emt 0:0:13]} bxc6 {[%emt 0:0:2]} 11. Na4 {[%emt 0:0:2]
} Nd7 {[%emt 0:0:5]} 12. c4 {[%emt 0:0:3]} Rb8 {[%emt 0:0:0]} 13. Qe2 {[%emt 0:0:9]} c5 {[%emt 0:0:34]} 14. Rad1 {[%emt 0:0:14]} Bb7 {[%emt 0:0:43]} 15. Rd2 {[%emt 0:0:39]} 0-0 {[%emt 0:0:23]} 16. g4 {[%emt 0:0:0]} f5 {[%emt 0:1:52]} 17. f4 {[%emt 0:3:45]} Bxe4 {[%emt 0:1:11]} 18. Bxe4 {[%emt 0:0:10]} fxe4 {[%emt 0:0:2]} 19. Nc3 {[%emt 0:0:1]} Qb7 {[%emt 0:0:17]
} 20. Rfd1 {[%emt 0:3:5]} g5 {[%emt 0:1:16]} 21. Rf1 {[%emt 0:0:0]} Rf7 {[%emt 0:0:54]} 22. fxg5 {[%emt 0:1:2]} Rxf1+ {[%emt 0:0:57]} 23. Kxf1 {[%emt 0:0:31]} Rf8+ {[%emt 0:2:0]} 24. Kg2 {[%emt 0:0:1]} Ne5 {[%emt 0:0:7]
} 25. Rd1 {[%emt 0:0:11]} Nd3 {[%emt 0:2:36]} 26. Rf1 {[%emt 0:0:0]} d5 {[%emt 0:0:1]} 27. Rxf8+ {[%emt 0:0:16]} Bxf8 {[%emt 0:0:2]} 28. Bd2 {[%emt 0:0:30]} Qxb2 {[%emt 0:1:5]} 29. cxd5 {[%emt 0:0:19]} Qxc3 {[%emt 0:0:1]
} 30. Bxc3 {[%emt 0:0:54]} Nf4+ {[%emt 0:0:1]} 31. Kf2 {[%emt 0:0:0]
} Nxe2 {[%emt 0:0:1]} 32. Kxe2 {[%emt 0:0:1]} exd5 {[%emt 0:0:0]} 33. Be5 {[%emt 0:0:7]} d4 {[%emt 0:1:8]} 34. h4 Kf7 {[%emt 0:0:17]
} 35. a4 {[%emt 0:1:2]} Ke6 {[%emt 0:0:7]} 36. Bf6 {[%emt 0:0:30]} Bd6 {[%emt 0:0:10]
} 37. h5 {[%emt 0:0:51]} Bf4 {[%emt 0:0:2]} 38. Bd8 {[%emt 0:0:0]} d3+ {[%emt 0:0:4]} 39. Kf2 {[%emt 0:0:7]} e3+ {[%emt 0:0:21]} 40. Kf3 {[%emt 0:0:0]} e2 {[%emt 0:0:1]} 0-1

[Event "FIDE World Rapid-ch Open 2018"]
[White "Mamedov, Rauf"]
[Black "Piorun, Kacper"]
[Site "St. Petersburg"]
[Round "6.26"]
[Annotator "ChessBase"]
[Result "0-1"]
[Date "2018.12.27"]
[WhiteElo "2703"]
[BlackElo "2634"]
[PlyCount "60"]
[TimeControl "900+10"]

1. e4 {[%emt 0:0:0]} c6 {[%emt 0:0:0]} 2. Nc3 {[%emt 0:0:0]} d5 {[%emt 0:0:0]} 3. Nf3 {[%emt 0:0:0]} Nf6 {[%emt 0:0:0]} 4. e5 {[%emt 0:0:0]} Ne4 {[%emt 0:0:0]} 5. Ne2 {[%emt 0:0:6]} Qb6 {[%emt 0:0:0]} 6. d4 {[%emt 0:0:0]} e6 {[%emt 0:0:0]} 7. Ng3 {[%emt 0:0:7]} c5 {[%emt 0:0:11]} 8. Bd3 {[%emt 0:0:2]} Nxg3 {[%emt 0:0:11]} 9. hxg3 {[%emt 0:0:2]} cxd4 {[%emt 0:0:0]} 10. Ng5 {[%emt 0:4:40]} Nc6 {[%emt 0:0:7]} 11. Nxh7 {[%emt 0:1:0]} Bd7 {[%emt 0:0:6]} 12. Qe2 {[%emt 0:2:9]} 0-0-0 {[%emt 0:1:8]} 13. 0-0 {[%emt 0:0:3]
} Be7 {[%emt 0:2:12]} 14. Ng5 {[%emt 0:0:2]} Nxe5 {[%emt 0:0:0]} 15. Qxe5 {[%emt 0:0:44]} f6 {[%emt 0:0:1]} 16. Qe2 {[%emt 0:0:5]} fxg5 {[%emt 0:0:3]} 17. f4 {[%emt 0:0:1]} Bd6 {[%emt 0:0:40]} 18. a4 {[%emt 0:0:48]
} gxf4 {[%emt 0:0:51]} 19. gxf4 {[%emt 0:1:13]} g5 {[%emt 0:0:0]} 20. a5 {[%emt 0:1:13]} Qc7 {[%emt 0:0:11]} 21. a6 {[%emt 0:0:2]} b6 {[%emt 0:0:21]
} 22. Bb5 {[%emt 0:2:49]} Bxb5 {[%emt 0:1:5]} 23. Qxb5 {[%emt 0:0:1]
} gxf4 {[%emt 0:0:7]} 24. Bd2 {[%emt 0:1:37]} Rdg8 {[%emt 0:0:0]} 25. Rf2 {[%emt 0:0:14]} Kb8 {[%emt 0:1:30]} 26. Re1 {[%emt 0:0:18]} Qh7 {[%emt 0:1:33]} 27. Kf1 {[%emt 0:0:1]} Qh1+ {[%emt 0:0:16]} 28. Ke2 {[%emt 0:0:1]
} Qh5+ {[%emt 0:0:1]} 29. Kf1 {[%emt 0:0:10]} Qg4 {[%emt 0:0:0]} 30. Kg1 {[%emt 0:0:16]} f3 {[%emt 0:0:3]} 0-1

[Event "FIDE World Rapid-ch Open 2018"]
[White "Antipov, Mikhail Al."]
[Black "Tomashevsky, Evgeny"]
[Site "St. Petersburg"]
[Round "6.27"]
[Annotator "ChessBase"]
[Result "0-1"]
[Date "2018.12.27"]
[WhiteElo "2589"]
[BlackElo "2705"]
[PlyCount "74"]
[TimeControl "900+10"]

1. e4 {[%emt 0:0:0]} e5 {[%emt 0:0:0]} 2. Nf3 {[%emt 0:0:0]} Nc6 {[%emt 0:0:0]
} 3. Bb5 {[%emt 0:0:2]} a6 {[%emt 0:0:0]} 4. Ba4 {[%emt 0:0:0]} Nf6 {[%emt 0:0:1]} 5. 0-0 {[%emt 0:0:3]} Be7 {[%emt 0:0:4]} 6. Re1 {[%emt 0:0:11]
} b5 {[%emt 0:0:5]} 7. Bb3 {[%emt 0:0:1]} 0-0 {[%emt 0:0:5]
} 8. d4 {[%emt 0:0:14]} d6 {[%emt 0:1:31]} 9. c3 {[%emt 0:0:2]} Bg4 {[%emt 0:0:4]
} 10. Be3 {[%emt 0:0:2]} exd4 {[%emt 0:0:57]} 11. cxd4 {[%emt 0:0:2]
} Na5 {[%emt 0:0:1]} 12. Bc2 {[%emt 0:0:16]} Nc4 {[%emt 0:0:0]} 13. Bc1 {[%emt 0:0:12]} c5 {[%emt 0:0:3]} 14. b3 {[%emt 0:0:26]} Nb6 {[%emt 0:0:2]
} 15. d5 {[%emt 0:2:49]} Nfd7 {[%emt 0:2:33]} 16. Nbd2 {[%emt 0:0:4]
} Bf6 {[%emt 0:1:22]} 17. Rb1 {[%emt 0:0:1]} Ne5 {[%emt 0:0:0]} 18. h3 {[%emt 0:0:16]} Bxf3 {[%emt 0:3:10]} 19. Nxf3 {[%emt 0:0:3]} Nxf3+ {[%emt 0:0:14]} 20. Qxf3 {[%emt 0:0:29]} Re8 {[%emt 0:0:22]} 21. Be3 {[%emt 0:1:56]
} Rc8 {[%emt 0:0:31]} 22. Qe2 {[%emt 0:1:29]} c4 {[%emt 0:0:0]} 23. Rec1 {[%emt 0:1:37]} Nd7 {[%emt 0:1:55]} 24. bxc4 {[%emt 0:1:15]} Rxc4 {[%emt 0:0:5]} 25. a4 {[%emt 0:0:3]} Qa5 {[%emt 0:1:20]} 26. axb5 {[%emt 0:1:59]
} axb5 {[%emt 0:0:0]} 27. Bd3 {[%emt 0:0:1]} Rxc1+ {[%emt 0:0:0]} 28. Bxc1 {[%emt 0:0:31]} Nc5 {[%emt 0:0:50]} 29. Rxb5 {[%emt 0:1:10]
} Qa4 {[%emt 0:2:18]} 30. Bc2 {[%emt 0:0:39]} Qa2 {[%emt 0:0:35]} 31. e5 {[%emt 0:1:39]
} Kf8 {[%emt 0:0:19]} 32. f4 {[%emt 0:2:6]} dxe5 {[%emt 0:0:0]} 33. Rxc5 {[%emt 0:0:24]} exf4 {[%emt 0:0:1]} 34. Qd1 {[%emt 0:0:9]} Qa7 {[%emt 0:0:5]} 35. Ba3 {[%emt 0:0:14]} Qxa3 {[%emt 0:0:2]} 36. Rc4 {[%emt 0:0:6]
} Qg3 {[%emt 0:0:11]} 37. Re4 {[%emt 0:0:5]} Rxe4 {[%emt 0:0:0]} 0-1

[Event "FIDE World Rapid-ch Open 2018"]
[White "Jakovenko, Dmitry"]
[Black "Rakhmanov, Aleksandr"]
[Site "St. Petersburg"]
[Round "6.28"]
[Annotator "ChessBase"]
[Result "1-0"]
[Date "2018.12.27"]
[WhiteElo "2735"]
[BlackElo "2629"]
[PlyCount "73"]
[TimeControl "900+10"]

1. Nf3 {[%emt 0:0:0]} d5 {[%emt 0:2:31]} 2. d4 {[%emt 0:0:0]} e6 {[%emt 0:0:0]} 3. c4 {[%emt 0:0:0]} a6 {[%emt 0:0:1]} 4. cxd5 {[%emt 0:0:0]} exd5 {[%emt 0:0:2]} 5. Nc3 {[%emt 0:0:0]} Nf6 {[%emt 0:0:2]} 6. Qb3 {[%emt 0:0:0]
} h6 {[%emt 0:1:25]} 7. Bf4 {[%emt 0:1:3]} Bd6 {[%emt 0:0:20]
} 8. Bxd6 {[%emt 0:0:25]} Qxd6 {[%emt 0:0:3]} 9. e3 {[%emt 0:0:1]} Nc6 {[%emt 0:1:15]
} 10. Bd3 {[%emt 0:1:25]} Rb8 {[%emt 0:2:58]} 11. h3 {[%emt 0:0:0]} Be6 {[%emt 0:0:9]} 12. Rc1 {[%emt 0:2:5]} 0-0 {[%emt 0:0:26]} 13. 0-0 {[%emt 0:0:5]} Ne7 {[%emt 0:0:23]} 14. Na4 {[%emt 0:0:39]} c6 {[%emt 0:0:0]} 15. Qc2 {[%emt 0:0:49]} g6 {[%emt 0:0:44]} 16. Nc5 {[%emt 0:0:55]} Nd7 {[%emt 0:0:29]} 17. b4 {[%emt 0:0:19]} Bf5 {[%emt 0:0:6]} 18. a4 {[%emt 0:0:19]
} Bxd3 {[%emt 0:0:18]} 19. Qxd3 {[%emt 0:0:8]} Kg7 {[%emt 0:0:0]} 20. Nxd7 {[%emt 0:0:52]} Qxd7 {[%emt 0:0:2]} 21. b5 {[%emt 0:0:0]} axb5 {[%emt 0:1:7]} 22. axb5 {[%emt 0:0:1]} Qd6 {[%emt 0:0:51]} 23. Rc3 {[%emt 0:0:27]
} Ra8 {[%emt 0:0:30]} 24. Rfc1 {[%emt 0:0:39]} Ra2 {[%emt 0:0:0]} 25. Qb1 {[%emt 0:0:28]} Rfa8 {[%emt 0:0:13]} 26. Ne5 {[%emt 0:0:19]} Qf6 {[%emt 0:0:47]} 27. R3c2 {[%emt 0:0:45]} Rxc2 {[%emt 0:0:10]} 28. Rxc2 {[%emt 0:0:37]
} Qf5 {[%emt 0:0:30]} 29. Qb2 {[%emt 0:0:23]} Rc8 {[%emt 0:0:0]} 30. bxc6 {[%emt 0:0:22]} Nxc6 {[%emt 0:0:20]} 31. Qxb7 {[%emt 0:0:59]} Nxd4 {[%emt 0:0:19]} 32. Rxc8 {[%emt 0:0:5]} Ne2+ {[%emt 0:0:4]} 33. Kf1 {[%emt 0:0:15]
} Ng3+ {[%emt 0:0:2]} 34. Ke1 {[%emt 0:0:6]} Qxe5 {[%emt 0:0:0]} 35. fxg3 {[%emt 0:0:8]} Qxg3+ {[%emt 0:0:12]} 36. Kf1 {[%emt 0:0:0]} Qxe3 {[%emt 0:0:7]} 37. Qxd5 {[%emt 0:0:25]} 1-0

[Event "FIDE World Rapid-ch Open 2018"]
[White "Jobava, Baadur"]
[Black "Bindrich, Falko"]
[Site "St. Petersburg"]
[Round "6.29"]
[Annotator "ChessBase"]
[Result "1-0"]
[Date "2018.12.27"]
[WhiteElo "2627"]
[BlackElo "2606"]
[PlyCount "91"]
[TimeControl "900+10"]

1. b3 {[%emt 0:0:0]} d5 {[%emt 0:0:0]} 2. Bb2 {[%emt 0:0:0]} Bg4 {[%emt 0:0:0]
} 3. f3 {[%emt 0:0:1]} Bf5 {[%emt 0:0:0]} 4. e3 {[%emt 0:0:0]} e6 {[%emt 0:0:2]} 5. Nc3 {[%emt 0:0:3]} Nc6 {[%emt 0:0:10]} 6. Nge2 {[%emt 0:0:17]
} h6 {[%emt 0:0:33]} 7. Ng3 {[%emt 0:0:31]} Bh7 {[%emt 0:0:5]
} 8. Bb5 {[%emt 0:0:14]} Nge7 {[%emt 0:0:15]} 9. Nce2 {[%emt 0:0:14]} a6 {[%emt 0:0:27]
} 10. Bd3 {[%emt 0:0:6]} Bxd3 {[%emt 0:1:26]} 11. cxd3 {[%emt 0:0:2]
} h5 {[%emt 0:0:13]} 12. 0-0 {[%emt 0:0:12]} h4 {[%emt 0:0:11]
} 13. Nh1 {[%emt 0:0:1]} Qd7 {[%emt 0:0:10]} 14. Nf2 {[%emt 0:0:3]} 0-0-0 {[%emt 0:0:15]} 15. a3 {[%emt 0:0:2]} Rg8 {[%emt 0:0:7]} 16. b4 {[%emt 0:0:0]} f5 {[%emt 0:2:1]} 17. Qb3 {[%emt 0:0:3]} g5 {[%emt 0:1:31]} 18. h3 {[%emt 0:0:40]} Ng6 {[%emt 0:1:8]} 19. Rfc1 {[%emt 0:0:19]} Bd6 {[%emt 0:0:0]} 20. Bf6 {[%emt 0:0:24]} Rdf8 {[%emt 0:1:4]} 21. Bxg5 {[%emt 0:0:3]
} Qg7 {[%emt 0:0:40]} 22. d4 {[%emt 0:12:41]} Nh8 {[%emt 0:1:23]} 23. f4 {[%emt 0:0:28]
} Nf7 {[%emt 0:0:2]} 24. Kh1 {[%emt 0:0:56]} Nxg5 {[%emt 0:0:0]} 25. fxg5 {[%emt 0:0:2]} Qxg5 {[%emt 0:0:2]} 26. Rg1 {[%emt 0:0:1]} f4 {[%emt 0:1:6]} 27. Raf1 {[%emt 0:0:12]} Qh5 {[%emt 0:2:13]} 28. Ng4 {[%emt 0:0:17]
} fxe3 {[%emt 0:0:42]} 29. dxe3 {[%emt 0:0:47]} Rf5 {[%emt 0:0:0]} 30. e4 {[%emt 0:0:6]} Rxf1 {[%emt 0:1:6]} 31. Rxf1 {[%emt 0:0:1]} Qg5 {[%emt 0:0:21]} 32. e5 {[%emt 0:0:2]} Be7 {[%emt 0:0:4]} 33. Qd3 {[%emt 0:0:2]
} Kb8 {[%emt 0:0:25]} 34. Nf4 {[%emt 0:0:20]} Nd8 {[%emt 0:0:0]} 35. Rf3 {[%emt 0:0:9]} Rg7 {[%emt 0:0:20]} 36. Kh2 {[%emt 0:0:6]} Rg8 {[%emt 0:0:7]} 37. Ne2 {[%emt 0:0:7]} Rg7 {[%emt 0:0:7]} 38. Rf4 {[%emt 0:0:13]
} Nf7 {[%emt 0:0:5]} 39. Qf3 {[%emt 0:0:5]} Qg6 {[%emt 0:0:0]} 40. Nf6 {[%emt 0:0:25]} Ng5 {[%emt 0:0:10]} 41. Qh5 {[%emt 0:0:4]} a5 {[%emt 0:0:41]} 42. bxa5 {[%emt 0:0:8]} Qxh5 {[%emt 0:0:24]} 43. Nxh5 {[%emt 0:0:2]
} Rh7 {[%emt 0:0:6]} 44. Nf6 {[%emt 0:0:2]} Rh8 {[%emt 0:0:0]} 45. Rg4 {[%emt 0:0:4]} Nh7 {[%emt 0:0:16]} 46. Rxh4 {[%emt 0:0:11]} 1-0